[Event "XVII Orsha-2019 Open"]
[Site "Orsha"]
[Date "2019.01.24"]
[Round "9"]
[White "Zarubitski, Viachaslau"]
[Black "Cherepov, Alexej"]
[Result "*"]
[WhiteElo "2415"]
[BlackElo "2226"]
[Annotator "RC"]
[PlyCount "60"]
[EventDate "2019.01.18"]
[EventType "swiss"]
[EventCountry "BLR"]
[SourceTitle "playchess.com"]
[Source "ChessBase"]
[SourceQuality "1"]
[TimeControl "5400+30"]

1. e4 {[%emt 0:00:00]} e5 {[%emt 0:00:25]} 2. Nf3 {[%emt 0:00:00]} Nc6 {[%emt 0:00:08]} 3. Nc3 {[%emt 0:00:06]} g6 {[%emt 0:00:48]} 4. d4 {[%emt 0:01:38]} exd4 {[%emt 0:00:07]} 5. Nxd4 {[%emt 0:00:02]} Bg7 {[%emt 0:00:46]} 6. Be3 {[%emt 0:00:18]} d6 {[%emt 0:03:53]} 7. Qd2 {[%emt 0:02:00]} Nf6 {[%emt 0:03:22]} 8. f3 {[%emt 0:02:01]} O-O {[%emt 0:00:53]} 9. O-O-O {[%emt 0:00:04]} Re8 {[%emt 0:03:08]} 10. Nxc6 {[%emt 0:17:16]} bxc6 {[%emt 0:00:12]} 11. Bc4 {[%emt 0:00:05]} Be6 {[%emt 0:06:01]} 12. Bb3 {[%emt 0:00:08]} Nd7 {[%emt 0:06:03]} 13. Bd4 {[%emt 0:05:39]} Ne5 {[%emt 0:07:26]} 14. f4 {[%emt 0:02:29]} c5 {[%emt 0:03:21]} 15. Bxe5 {[%emt 0:12:55]} dxe5 {[%emt 0:04:44]} 16. Qf2 {[%emt 0:03:20]} Qf6 {[%emt 0:02:10]} 17. Bxe6 {[%emt 0:03:13]} fxe6 {[%emt 0:05:45]} 18. Qxc5 {[%emt 0:00:36]} exf4 {[%emt 0:01:06]} 19. Rd7 {[%emt 0:02:37]} f3 {[%emt 0:01:47]} 20. Rf1 {[%emt 0:03:09]} Rad8 {[%emt 0:14:30]} 21. Rxf3 {[%emt 0:05:35]} Qh4 {[%emt 0:06:10]} 22. Rxg7+ {[%emt 0:13:00]} Kxg7 {[%emt 0:00:28]} 23. Qxc7+ {[%emt 0:00:03]} Kg8 {[%emt 0:02:07]} 24. Qf7+ {[%emt 0:02:45]} Kh8 {[%emt 0:00:07]} 25. b3 {[%emt 0:00:36]} Qg5+ {[%emt 0:00:39]} 26. Kb2 {[%emt 0:00:26]} Qxg2 {[%emt 0:01:03]} 27. Qf6+ {[%emt 0:02:15]} Kg8 {[%emt 0:00:09]} 28. Qf7+ {[%emt 0:01:56]} Kh8 {[%emt 0:01:58]} 29. Qf6+ {[%emt 0:04:42]} Kg8 {[%emt 0:03:01]} 30. e5 {[%emt 0:00:00]} Rc8 {[%emt 0:04:01]} *

[Event "XVII Orsha-2019 Open"]
[Site "Orsha"]
[Date "2019.01.24"]
[Round "9"]
[White "Lazavik, Denis"]
[Black "Moskalenko, Alexander"]
[Result "1/2-1/2"]
[ECO "E11"]
[WhiteElo "2296"]
[BlackElo "2517"]
[Annotator "ChessBase"]
[PlyCount "44"]
[EventDate "2019.01.18"]
[EventType "swiss"]
[EventCountry "BLR"]
[SourceTitle "playchess.com"]
[Source "ChessBase"]
[SourceQuality "1"]
[TimeControl "5400+30"]

1. d4 {[%emt 0:00:00]} e6 {[%emt 0:17:43]} 2. c4 {[%emt 0:00:10]} Nf6 {[%emt 0:02:51]} 3. Nf3 {[%emt 0:00:23]} Bb4+ {[%emt 0:00:04]} 4. Bd2 {[%emt 0:00:40]} c5 {[%emt 0:00:54]} 5. Bxb4 {[%emt 0:02:15]} cxb4 {[%emt 0:00:03]} 6. g3 {[%emt 0:00:36]} b6 {[%emt 0:00:03]} 7. Bg2 {[%emt 0:03:15]} Bb7 {[%emt 0:00:15]} 8. O-O {[%emt 0:01:21]} O-O {[%emt 0:00:08]} 9. a3 {[%emt 0:05:00]} bxa3 {[%emt 0:01:48]} 10. Rxa3 {[%emt 0:00:37]} Qc7 {[%emt 0:00:40]} 11. Nbd2 {[%emt 0:04:14]} a5 {[%emt 0:04:57]} 12. Qb1 {[%emt 0:06:52]} d6 {[%emt 0:00:33]} 13. e4 {[%emt 0:06:40]} e5 {[%emt 0:01:53]} 14. d5 {[%emt 0:01:51]} Na6 {[%emt 0:00:17]} 15. Ne1 {[%emt 0:00:56]} Nc5 {[%emt 0:00:25]} 16. Nc2 {[%emt 0:03:58]} a4 {[%emt 0:03:40]} 17. Ne3 {[%emt 0:04:32]} Ra5 {[%emt 0:04:52]} 18. f4 {[%emt 0:03:48]} Nfd7 {[%emt 0:00:39]} 19. Nf5 {[%emt 0:02:18]} g6 20. Nh6+ Kg7 21. Ng4 Kg8 22. Ne3 Kg7 1/2-1/2

[Event "XVII Orsha-2019 Open"]
[Site "Orsha"]
[Date "2019.01.24"]
[Round "9"]
[White "Afonasieva, Anna"]
[Black "Ghevondyan, Arman"]
[Result "1-0"]
[ECO "D85"]
[WhiteElo "2265"]
[BlackElo "1679"]
[Annotator "NA"]
[PlyCount "71"]
[EventDate "2019.01.18"]
[EventType "swiss"]
[EventCountry "BLR"]
[SourceTitle "playchess.com"]
[Source "ChessBase"]
[SourceQuality "1"]
[TimeControl "5400+30"]

{[%evp 32,68,72,87,32767,32767,140,136,131,147,268,32767,32767,187,213,186,252,329,285,337,297,352,367,32767,32767,32767,32767,170,220,143,147,170,316,302,805,1039,718,526,558]} 1. d4 {[%emt 0:00:00]} Nf6 {[%emt 0:00:00]} 2. c4 {[%emt 0:00:04]} g6 {[%emt 0:00:00]} 3. Nc3 {[%emt 0:00:04]} d5 {[%emt 0:00:00]} 4. cxd5 {[%emt 0:00:20]} Nxd5 {[%emt 0:00:00]} 5. e4 {[%emt 0:00:07]} Nb6 {[%emt 0:00:00]} 6. h3 {[%emt 0:00:53]} Bg7 {[%emt 0:00:27]} 7. Nf3 {[%emt 0:00:12]} O-O {[%emt 0:00:16]} 8. Be2 {[%emt 0:01:02]} Nc6 {[%emt 0:01:49]} 9. Be3 {[%emt 0:01:07]} Na5 {[%emt 0:02:47] D70: Grünfeld: Unusual White 3rd moves (met by ...d5)} (9... f5 10. exf5 Bxf5 11. Qb3+ Kh8 12. d5 Ne5 13. Nxe5 Bxe5 14. O-O e6 15. f4 Bg7 16. g4 Qh4 17. Kh2 exd5 18. Bxb6 axb6 19. gxf5 {0-1 (28) Kuzubov,Y (2558)-Mamedyarov,S (2646) Dubai 2005}) 10. b3 {[%emt 0:04:11]} c5 {[%emt 0:00:42]} 11. Rc1 {[%emt 0:01:46]} cxd4 {[%emt 0:01:06]} 12. Nxd4 {[%emt 0:00:57]} Nc6 $146 {[%emt 0:14:17]} ({Predecessor:} 12... Bd7 13. O-O Nc6 14. Ndb5 Nc8 15. Nd5 a6 16. Nbc3 e6 17. Nf4 {1-0 (36) Cvitan,O (2498)-Katavic,B (2188) Split 2015}) 13. Nxc6 {[%emt 0:02:12]} bxc6 {[%emt 0:00:06]} 14. O-O {[%emt 0:00:12]} Bb7 {[%emt 0:03:56]} 15. a4 {[%emt 0:03:42]} Nc8 {[%emt 0:11:07]} 16. Bc5 {[%emt 0:05:29]} Nd6 {[%emt 0:02:53]} 17. Bd3 {[%emt 0:03:42]} Qc7 {[%emt 0:00:52]} 18. Qe2 {[%emt 0:01:09]} Rfd8 {[%emt 0:01:57] [#]} (18... Bc8 $1 $14) 19. e5 $1 {[%emt 0:06:51]} Nc8 {[%emt 0:00:50]} 20. f4 {[%emt 0:01:51]} f5 {[%emt 0:03:39]} (20... e6 $16 {was necessary.} 21. Rfd1 Bf8 22. Bxf8 Kxf8) 21. Bc4+ {[%emt 0:12:18]} Kh8 {[%emt 0:00:26]} 22. h4 {[%emt 0:00:43]} Nb6 {[%emt 0:00:37]} 23. Bf7 {[%emt 0:00:26]} Rf8 {[%emt 0:00:52] [#]} (23... Nd7 $142) 24. e6 $1 {[%emt 0:00:41]} Bf6 {[%emt 0:03:53]} 25. h5 {[%emt 0:01:45]} Kg7 {[%emt 0:00:09]} 26. g4 {[%emt 0:09:25]} fxg4 {[%emt 0:02:44]} 27. Qxg4 {[%emt 0:00:50]} Rxf7 {[%emt 0:00:12]} 28. exf7 {[%emt 0:00:06]} Kxf7 {[%emt 0:00:23]} 29. hxg6+ {[%emt 0:04:35]} hxg6 {[%emt 0:00:08]} 30. Ne4 {[%emt 0:00:11]} Bc8 {[%emt 0:00:30]} 31. Ng5+ {[%emt 0:03:28]} Bxg5 {[%emt 0:04:48]} (31... Ke8 $142 32. Ne6 Bxe6 33. Qxe6 Qc8 34. Qg8+ {[%mdl 64] Double Attack} Kd7 35. Qxg6 Kc7) 32. fxg5+ {[%emt 0:02:50]} Kg8 {[%emt 0:00:21]} (32... Ke8 $142 33. Qh4 Bf5) 33. Qh4 {[%emt 0:01:06]} ({Not} 33. Qf3 Bf5 $18) 33... Nd5 {[%emt 0:00:25]} 34. Bd4 $18 {[%emt 0:00:36]} e5 {[%emt 0:00:25]} 35. Qh6 {[%emt 0:06:58]} Bf5 {[%emt 0:00:30]} 36. Rxf5 {[%emt 0:00:11]} 1-0

[Event "XVII Orsha-2019 Open"]
[Site "Orsha"]
[Date "2019.01.24"]
[Round "9"]
[White "Shkalov, Oleg"]
[Black "Tihonov, Jurij"]
[Result "*"]
[ECO "D10"]
[WhiteElo "2225"]
[BlackElo "2399"]
[Annotator "NA"]
[PlyCount "57"]
[EventDate "2019.01.18"]
[EventType "swiss"]
[EventCountry "BLR"]
[SourceTitle "playchess.com"]
[Source "ChessBase"]
[SourceQuality "1"]
[TimeControl "5400+30"]

1. d4 {[%emt 0:00:00]} d5 {[%emt 0:09:36]} 2. c4 {[%emt 0:00:00]} c6 {[%emt 0:00:07]} 3. Nc3 {[%emt 0:00:00]} dxc4 {[%emt 0:00:05]} 4. e3 {[%emt 0:01:35]} b5 {[%emt 0:00:09]} 5. a4 {[%emt 0:00:09]} b4 {[%emt 0:00:08]} 6. Ne4 {[%emt 0:00:16] D10: Slav Defence: 3 cxd5 (without early Nf3) and 3 Nc3} Qd5 {[%emt 0:00:16]} 7. Nd2 {[%emt 0:00:52]} c3 {[%emt 0:01:50]} 8. bxc3 {[%emt 0:00:51]} bxc3 {[%emt 0:00:07]} 9. Nb1 {[%emt 0:00:16]} e5 {[%emt 0:00:47]} (9... Qa5 10. Qc2 Na6 11. Qxc3 Qxc3+ 12. Nxc3 Nb4 13. Rb1 a5 {1-0 (79) Wojtaszek,R (2750)-Bartel,M (2604) Warsaw 2018 CBM 185 [Roiz,M]}) 10. dxe5 $146 {[%emt 0:09:24]} ({Predecessor:} 10. Nxc3 Bb4 11. Bd2 Qa5 12. Ne4 Nf6 13. Nxf6+ gxf6 {½-½ (77) Markus,R (2604)-Hracek,Z (2646) Germany 2015}) 10... Bb4 {[%emt 0:03:35]} 11. Qxd5 {[%emt 0:03:39]} cxd5 {[%emt 0:00:02]} 12. Bb5+ {[%emt 0:08:20]} Nd7 {[%emt 0:13:05]} 13. Ne2 {[%emt 0:01:38]} c2+ {[%emt 0:03:10]} 14. Nd2 {[%emt 0:00:34]} Ne7 {[%emt 0:00:06]} 15. Ba3 Bxa3 {[%emt 0:02:27]} 16. Rxa3 {[%emt 0:31:44]} O-O {[%emt 0:00:07]} 17. Nf3 {[%emt 0:12:53]} Ng6 {[%emt 0:21:35]} 18. Bxd7 {[%emt 0:01:45]} Bxd7 {[%emt 0:00:05]} 19. Kd2 {[%emt 0:00:12]} Rfc8 {[%emt 0:00:29]} 20. Ned4 {[%emt 0:04:06]} a5 {[%emt 0:06:58]} 21. Rc1 {[%emt 0:04:54]} Rc4 {[%emt 0:00:08]} 22. Rxc2 {[%emt 0:00:12]} Rxa4 {[%emt 0:00:06]} 23. Rxa4 Bxa4 {[%emt 0:00:02]} 24. Ra2 {[%emt 0:01:18]} (24. Rc7 $16) 24... Bd7 {[%emt 0:00:13]} 25. Nb3 {[%emt 0:10:40]} Bg4 $11 {[%emt 0:08:28]} 26. Rxa5 {[%emt 0:00:57]} Rxa5 {[%emt 0:00:04]} 27. Nxa5 {[%emt 0:00:03]} Bxf3 {[%emt 0:00:04]} 28. gxf3 {[%emt 0:00:02]} Nxe5 {[%emt 0:00:06]} 29. f4 {[%emt 0:02:26]} *

[Event "XVII Orsha-2019 Open"]
[Site "Orsha"]
[Date "2019.01.24"]
[Round "9"]
[White "Galkin, Gleb"]
[Black "Vorobjov, Pavel"]
[Result "*"]
[ECO "D02"]
[WhiteElo "2156"]
[BlackElo "2296"]
[Annotator "NA"]
[PlyCount "54"]
[EventDate "2019.01.18"]
[EventType "swiss"]
[EventCountry "BLR"]
[SourceTitle "playchess.com"]
[Source "ChessBase"]
[SourceQuality "1"]
[TimeControl "5400+30"]

1. d4 {[%emt 0:00:00]} d5 {[%emt 0:00:38]} 2. Nf3 {[%emt 0:00:00]} Nf6 {[%emt 0:00:19]} 3. c4 {[%emt 0:00:08]} c6 {[%emt 0:00:49]} 4. Nc3 {[%emt 0:01:20]} e6 {[%emt 0:01:08]} 5. e3 {[%emt 0:00:18]} Nbd7 {[%emt 0:00:48]} 6. Qc2 {[%emt 0:00:12]} Bd6 {[%emt 0:02:41]} 7. b3 {[%emt 0:00:38]} O-O {[%emt 0:00:30]} 8. Be2 {[%emt 0:00:12]} b6 {[%emt 0:06:29]} 9. O-O {[%emt 0:00:42]} Bb7 {[%emt 0:04:54]} 10. Bb2 {[%emt 0:01:19]} Rc8 {[%emt 0:03:04]} 11. Rad1 {[%emt 0:05:57]} c5 {[%emt 0:07:06]} 12. cxd5 {[%emt 0:07:55]} exd5 {[%emt 0:02:18]} 13. Rfe1 {[%emt 0:02:28] D45: Semi-Slav: 5 e3} Qe7 {[%emt 0:04:57]} 14. Bf1 {[%emt 0:03:09]} (14. Qf5 Qe6 15. Bd3 Rfe8 16. dxc5 bxc5 17. Ng5 Qe5 18. Nf3 Qe6 19. Ng5 Qe5 20. Nf3 Qe6 {½-½ (20) Grischuk,A (2715)-Vallejo Pons,F (2660) Heraklio 2007}) 14... Rfd8 $146 {[%emt 0:03:17]} ({Predecessor:} 14... Rfe8 15. g3 Ne4 16. Bh3 cxd4 17. exd4 Bb4 18. Re3 Rc7 19. Rc1 {0-1 (27) Hess,C (2208)-Hansen,M (2312) Germany 2015}) 15. g3 {[%emt 0:07:51]} Ne4 {[%emt 0:04:40]} 16. Qb1 {[%emt 0:06:21]} Ndf6 {[%emt 0:08:21]} 17. Bh3 {[%emt 0:13:09]} Nxc3 {[%emt 0:12:58]} 18. Bxc3 {[%emt 0:00:44]} Ne4 {[%emt 0:00:06]} 19. Bb2 {[%emt 0:05:25]} Qf6 {[%emt 0:05:35]} 20. Bg2 {[%emt 0:07:14]} c4 {[%emt 0:00:43]} 21. Re2 {[%emt 0:05:22]} (21. bxc4 $15 dxc4 22. d5) 21... c3 {[%emt 0:00:47]} 22. Bc1 {[%emt 0:05:58]} c2 {[%emt 0:06:06]} 23. Rxc2 {[%emt 0:00:04]} Nc3 {[%emt 0:00:11]} 24. Rxc3 {[%emt 0:00:10]} Rxc3 {[%emt 0:00:17]} 25. Bb2 {[%emt 0:01:12]} Rc7 {[%emt 0:00:40]} 26. Ne5 {[%emt 0:06:07]} Qe6 $17 {[%emt 0:02:28]} 27. Bf3 {[%emt 0:07:36]} f6 {[%emt 0:01:51]} *

[Event "XVII Orsha-2019 Open"]
[Site "Orsha"]
[Date "2019.01.24"]
[Round "9"]
[White "Vashchilov, Sergey"]
[Black "Egorenkov, Igor"]
[Result "*"]
[ECO "B00"]
[WhiteElo "2134"]
[BlackElo "2213"]
[Annotator "NA"]
[PlyCount "47"]
[EventDate "2019.01.18"]
[EventType "swiss"]
[EventCountry "BLR"]
[SourceTitle "playchess.com"]
[Source "ChessBase"]
[SourceQuality "1"]
[TimeControl "5400+30"]

1. e4 {[%emt 0:00:00]} c5 {[%emt 0:05:48]} 2. Nf3 {[%emt 0:00:00]} e6 {[%emt 0:00:39]} 3. b3 {[%emt 0:00:32]} d5 {[%emt 0:00:49]} 4. exd5 {[%emt 0:00:57]} exd5 {[%emt 0:00:09]} 5. Bb5+ {[%emt 0:00:16]} Bd7 {[%emt 0:02:36]} 6. Bxd7+ {[%emt 0:01:43]} Nxd7 {[%emt 0:09:27]} 7. O-O {[%emt 0:01:14]} Bd6 {[%emt 0:07:32]} 8. Bb2 {[%emt 0:06:12]} Ngf6 {[%emt 0:03:34]} 9. Re1+ {[%emt 0:00:29]} Kf8 {[%emt 0:00:06]} 10. d4 {[%emt 0:04:19]} c4 {[%emt 0:02:25]} 11. bxc4 {[%emt 0:02:30]} dxc4 {[%emt 0:01:24]} 12. a4 {[%emt 0:04:50]} Rc8 {[%emt 0:13:35]} 13. Nc3 {[%emt 0:02:28]} a6 {[%emt 0:00:30]} 14. Ne5 {[%emt 0:00:44]} Qc7 {[%emt 0:12:30]} 15. Qe2 {[%emt 0:10:22]} b6 {[%emt 0:10:13]} 16. f4 {[%emt 0:05:09]} h5 {[%emt 0:00:21]} 17. Qf3 {[%emt 0:02:02]} Rh6 {[%emt 0:04:59]} 18. Re2 {[%emt 0:03:49]} Rb8 {[%emt 0:09:56]} 19. Rae1 {[%emt 0:08:26]} Kg8 {[%emt 0:06:44]} 20. g3 {[%emt 0:09:19]} b5 {[%emt 0:05:18]} 21. axb5 {[%emt 0:00:23]} axb5 {[%emt 0:00:01]} 22. Nc6 {[%emt 0:00:35]} Rc8 {[%emt 0:00:32]} 23. Ne5 {[%emt 0:08:57]} Rb8 {[%emt 0:00:03]} 24. Bc1 $14 {[%emt 0:01:35]} *

[Event "XVII Orsha-2019 Open"]
[Site "Orsha"]
[Date "2019.01.24"]
[Round "9"]
[White "Strybuk, Artsiom I"]
[Black "Mihajlovskij, Sergei"]
[Result "*"]
[WhiteElo "2110"]
[BlackElo "2406"]
[Annotator "ChessBase"]
[PlyCount "44"]
[EventDate "2019.01.18"]
[EventType "swiss"]
[EventCountry "BLR"]
[SourceTitle "playchess.com"]
[Source "ChessBase"]
[SourceQuality "1"]
[TimeControl "5400+30"]

1. d4 {[%emt 0:00:00]} Nf6 {[%emt 0:12:24]} 2. c4 {[%emt 0:00:00]} e6 {[%emt 0:00:24]} 3. Nc3 {[%emt 0:00:00]} Bb4 {[%emt 0:00:07]} 4. e3 {[%emt 0:00:00]} O-O {[%emt 0:00:25]} 5. Nge2 {[%emt 0:00:07]} Re8 {[%emt 0:01:49]} 6. a3 {[%emt 0:02:02]} Bf8 {[%emt 0:00:08]} 7. g3 {[%emt 0:11:50]} d6 {[%emt 0:10:14]} 8. e4 {[%emt 0:11:41]} c5 {[%emt 0:16:42]} 9. Bg2 {[%emt 0:09:43]} Nc6 {[%emt 0:08:00]} 10. O-O {[%emt 0:05:00]} a6 {[%emt 0:00:17]} 11. h3 {[%emt 0:07:58]} Rb8 {[%emt 0:00:32]} 12. Be3 {[%emt 0:01:24]} e5 {[%emt 0:08:46]} 13. dxc5 {[%emt 0:07:36]} dxc5 {[%emt 0:00:28]} 14. Nd5 {[%emt 0:01:05]} h6 {[%emt 0:03:44]} 15. Kh2 {[%emt 0:03:22]} b5 {[%emt 0:01:03]} 16. cxb5 {[%emt 0:03:34]} axb5 {[%emt 0:02:01]} 17. Rc1 {[%emt 0:05:07]} Nd4 {[%emt 0:01:02]} 18. b4 {[%emt 0:03:52]} Nxd5 {[%emt 0:04:27]} 19. exd5 {[%emt 0:00:33]} cxb4 {[%emt 0:03:35]} 20. Bxd4 {[%emt 0:05:36]} exd4 {[%emt 0:04:25]} 21. axb4 {[%emt 0:00:01]} Bxb4 {[%emt 0:12:17]} 22. Nxd4 {[%emt 0:00:01]} Rb6 {[%emt 0:01:58]} *

[Event "XVII Orsha-2019 Open"]
[Site "Orsha"]
[Date "2019.01.24"]
[Round "9"]
[White "Navumenka, Mikhei"]
[Black "Aliakbarov, Anar"]
[Result "*"]
[ECO "E61"]
[WhiteElo "2104"]
[BlackElo "2282"]
[Annotator "NA"]
[PlyCount "62"]
[EventDate "2019.01.18"]
[EventType "swiss"]
[EventCountry "BLR"]
[SourceTitle "playchess.com"]
[Source "ChessBase"]
[SourceQuality "1"]
[TimeControl "5400+30"]

1. d4 {[%emt 0:00:00]} Nf6 {[%emt 0:00:00]} 2. c4 {[%emt 0:00:00]} g6 {[%emt 0:00:00]} 3. Nc3 {[%emt 0:01:05]} Bg7 {[%emt 0:00:00]} 4. Nf3 {[%emt 0:00:50]} O-O {[%emt 0:00:01]} 5. g3 {[%emt 0:00:06]} d6 {[%emt 0:00:04]} 6. Bg2 {[%emt 0:00:26]} Nc6 {[%emt 0:00:07]} 7. O-O {[%emt 0:00:11]} Bf5 {[%emt 0:00:13]} 8. Nh4 {[%emt 0:02:05]} Bd7 {[%emt 0:00:04]} 9. e4 {[%emt 0:02:04] E62: King's Indian: Fianchetto: 6...c6 and Panno Variation (6...Nc6) without ...a6} (9. f4 Na5 10. b3 c5 11. dxc5 dxc5 12. Bd2 Bc6 13. Nd5 Nxd5 14. cxd5 Bb5 15. Rc1 Rc8 16. Bc3 Qb6 17. Bxg7 Kxg7 {1-0 (52) Gajewski,G (2628)-Fedorov,A (2598) Khanty-Mansiysk 2017 CBM 179 [Krasenkow,M]}) 9... e5 {[%emt 0:01:33]} 10. dxe5 {[%emt 0:03:03]} dxe5 {[%emt 0:01:10]} 11. Nd5 $146 {[%emt 0:03:36]} ({Predecessor:} 11. f4 Qe7 12. Nd5 Nxd5 13. cxd5 Nd4 14. Be3 c6 15. fxe5 Qxe5 16. Bf4 Qe8 {1-0 (58) Buhin,D (1978)-Dzaja,M (1953) Osijek 2015}) 11... Nd4 {[%emt 0:11:34]} 12. Be3 {[%emt 0:07:02]} c6 {[%emt 0:05:16]} 13. Nxf6+ {[%emt 0:08:28]} Bxf6 {[%emt 0:00:35]} 14. Bxd4 {[%emt 0:00:12]} exd4 {[%emt 0:00:11]} 15. Nf3 {[%emt 0:00:02]} c5 {[%emt 0:01:58]} 16. Ne1 {[%emt 0:01:36]} b5 {[%emt 0:08:28]} 17. b3 {[%emt 0:09:27]} bxc4 {[%emt 0:00:19]} 18. bxc4 {[%emt 0:00:01]} Rb8 {[%emt 0:04:40]} 19. Nd3 {[%emt 0:00:53]} Qa5 {[%emt 0:01:42]} 20. f4 {[%emt 0:05:03]} Be6 {[%emt 0:01:40]} 21. Rc1 {[%emt 0:03:18]} Qxa2 {[%emt 0:06:56]} 22. Rf2 {[%emt 0:04:14]} Qb3 {[%emt 0:06:14]} 23. Qxb3 {[%emt 0:15:19]} Rxb3 {[%emt 0:01:38]} 24. Nxc5 {[%emt 0:00:02]} Rc3 {[%emt 0:00:11]} 25. Ra1 {[%emt 0:04:38]} d3 {[%emt 0:03:04]} 26. e5 {[%emt 0:04:19]} Be7 {[%emt 0:00:32]} 27. Ne4 {[%emt 0:00:01]} Rxc4 $19 {[%emt 0:01:19]} 28. Rxa7 {[%emt 0:01:28]} Bd8 {[%emt 0:17:05]} 29. Ra6 {[%emt 0:00:55]} Rb4 {[%emt 0:03:20]} 30. Rd2 {[%emt 0:05:48]} Rb1+ {[%emt 0:03:35]} 31. Kf2 {[%emt 0:01:20]} Bc4 {[%emt 0:03:02]} *

[Event "XVII Orsha-2019 Open"]
[Site "Orsha"]
[Date "2019.01.24"]
[Round "9.5"]
[White "Shkalov, Oleg"]
[Black "Tihonov, Jurij"]
[Result "1/2-1/2"]
[ECO "D10"]
[WhiteElo "2225"]
[BlackElo "2399"]
[Annotator "NA"]
[PlyCount "64"]
[EventDate "2019.01.18"]
[EventType "swiss"]
[EventCountry "BLR"]
[SourceTitle "playchess.com"]
[Source "ChessBase"]
[SourceQuality "1"]
[TimeControl "5400+30"]

1. d4 d5 {[%emt 0:09:36]} 2. c4 {[%emt 0:00:00]} c6 {[%emt 0:00:07]} 3. Nc3 {[%emt 0:00:00]} dxc4 {[%emt 0:00:05]} 4. e3 {[%emt 0:01:35]} b5 {[%emt 0:00:09]} 5. a4 {[%emt 0:00:09]} b4 {[%emt 0:00:08]} 6. Ne4 {[%emt 0:00:16] D10: Slav Defence: 3 cxd5 (without early Nf3) and 3 Nc3} Qd5 {[%emt 0:00:16]} 7. Nd2 {[%emt 0:00:52]} c3 {[%emt 0:01:50]} 8. bxc3 {[%emt 0:00:51]} bxc3 {[%emt 0:00:07]} 9. Nb1 {[%emt 0:00:16]} e5 {[%emt 0:00:47]} (9... Qa5 10. Qc2 Na6 11. Qxc3 Qxc3+ 12. Nxc3 Nb4 13. Rb1 a5 {1-0 (79) Wojtaszek,R (2750)-Bartel,M (2604) Warsaw 2018 CBM 185 [Roiz,M]}) 10. dxe5 $146 {[%emt 0:09:24]} ({Predecessor:} 10. Nxc3 Bb4 11. Bd2 Qa5 12. Ne4 Nf6 13. Nxf6+ gxf6 {½-½ (77) Markus,R (2604)-Hracek,Z (2646) Germany 2015}) 10... Bb4 {[%emt 0:03:35]} 11. Qxd5 {[%emt 0:03:39]} cxd5 {[%emt 0:00:02]} 12. Bb5+ {[%emt 0:08:20]} Nd7 {[%emt 0:13:05]} 13. Ne2 {[%emt 0:01:38]} c2+ {[%emt 0:03:10]} 14. Nd2 {[%emt 0:00:34]} Ne7 {[%emt 0:00:06]} 15. Ba3 Bxa3 {[%emt 0:02:27]} 16. Rxa3 {[%emt 0:31:44]} O-O {[%emt 0:00:07]} 17. Nf3 {[%emt 0:12:53]} Ng6 {[%emt 0:21:35]} 18. Bxd7 {[%emt 0:01:45]} Bxd7 {[%emt 0:00:05]} 19. Kd2 {[%emt 0:00:12]} Rfc8 {[%emt 0:00:29]} 20. Ned4 {[%emt 0:04:06]} a5 {[%emt 0:06:58]} 21. Rc1 {[%emt 0:04:54]} Rc4 {[%emt 0:00:08]} 22. Rxc2 {[%emt 0:00:12]} Rxa4 {[%emt 0:00:06]} 23. Rxa4 Bxa4 {[%emt 0:00:02]} 24. Ra2 {[%emt 0:01:18]} (24. Rc7 $16) 24... Bd7 {[%emt 0:00:13]} 25. Nb3 {[%emt 0:10:40]} Bg4 $11 {[%emt 0:08:28]} 26. Rxa5 Rxa5 27. Nxa5 Bxf3 28. gxf3 Nxe5 29. f4 Nf3+ 30. Ke2 Ng1+ 31. Kf1 Nf3 32. Ke2 Ng1+ 1/2-1/2

[Event "XVII Orsha-2019 Open"]
[Site "Orsha"]
[Date "2019.01.24"]
[Round "9.6"]
[White "Galkin, Gleb"]
[Black "Vorobjov, Pavel"]
[Result "0-1"]
[ECO "D45"]
[WhiteElo "2156"]
[BlackElo "2296"]
[Annotator "NA"]
[PlyCount "88"]
[EventDate "2019.01.18"]
[EventType "swiss"]
[EventCountry "BLR"]
[SourceTitle "playchess.com"]
[Source "ChessBase"]
[SourceQuality "1"]
[TimeControl "5400+30"]

1. d4 d5 {[%emt 0:00:38]} 2. Nf3 {[%emt 0:00:00]} Nf6 {[%emt 0:00:19]} 3. c4 {[%emt 0:00:08]} c6 {[%emt 0:00:49]} 4. Nc3 {[%emt 0:01:20]} e6 {[%emt 0:01:08]} 5. e3 {[%emt 0:00:18]} Nbd7 {[%emt 0:00:48]} 6. Qc2 {[%emt 0:00:12]} Bd6 {[%emt 0:02:41]} 7. b3 {[%emt 0:00:38]} O-O {[%emt 0:00:30]} 8. Be2 {[%emt 0:00:12]} b6 {[%emt 0:06:29]} 9. O-O {[%emt 0:00:42]} Bb7 {[%emt 0:04:54]} 10. Bb2 {[%emt 0:01:19]} Rc8 {[%emt 0:03:04]} 11. Rad1 {[%emt 0:05:57]} c5 {[%emt 0:07:06]} 12. cxd5 {[%emt 0:07:55]} exd5 {[%emt 0:02:18]} 13. Rfe1 {[%emt 0:02:28] D45: Semi-Slav: 5 e3} Qe7 {[%emt 0:04:57]} 14. Bf1 {[%emt 0:03:09]} (14. Qf5 Qe6 15. Bd3 Rfe8 16. dxc5 bxc5 17. Ng5 Qe5 18. Nf3 Qe6 19. Ng5 Qe5 20. Nf3 Qe6 {½-½ (20) Grischuk,A (2715)-Vallejo Pons,F (2660) Heraklio 2007}) 14... Rfd8 $146 {[%emt 0:03:17]} ({Predecessor:} 14... Rfe8 15. g3 Ne4 16. Bh3 cxd4 17. exd4 Bb4 18. Re3 Rc7 19. Rc1 {0-1 (27) Hess,C (2208)-Hansen,M (2312) Germany 2015}) 15. g3 {[%emt 0:07:51]} Ne4 {[%emt 0:04:40]} 16. Qb1 {[%emt 0:06:21]} Ndf6 {[%emt 0:08:21]} 17. Bh3 {[%emt 0:13:09]} Nxc3 {[%emt 0:12:58]} 18. Bxc3 {[%emt 0:00:44]} Ne4 {[%emt 0:00:06]} 19. Bb2 {[%emt 0:05:25]} Qf6 {[%emt 0:05:35]} 20. Bg2 {[%emt 0:07:14]} c4 {[%emt 0:00:43]} 21. Re2 {[%emt 0:05:22]} (21. bxc4 $15 dxc4 22. d5) 21... c3 {[%emt 0:00:47]} 22. Bc1 {[%emt 0:05:58]} c2 {[%emt 0:06:06]} 23. Rxc2 {[%emt 0:00:04]} Nc3 {[%emt 0:00:11]} 24. Rxc3 {[%emt 0:00:10]} Rxc3 {[%emt 0:00:17]} 25. Bb2 {[%emt 0:01:12]} Rc7 {[%emt 0:00:40]} 26. Ne5 {[%emt 0:06:07]} Qe6 $17 {[%emt 0:02:28]} 27. Bf3 f6 28. Bg4 Qe8 29. Nd3 Qe4 30. Bh3 Qe8 31. Bg4 Bc8 32. Bf3 Be6 33. Ne1 Qg6 34. Qxg6 hxg6 35. Be2 g5 36. Bd3 Kf7 37. f3 g4 38. f4 g6 39. Rd2 Bb4 40. Re2 Bxe1 41. Rxe1 Bf5 42. Bxf5 gxf5 43. Re2 Rdc8 44. Ba3 Rc2 0-1